Workbook

Sheet Input data
A1: =" Dynatrace 7.1 Deployment Sizing Calculator Version " &INDEX('Version History'!A:A,COUNTA('Version History'!A:A)) -> Dynatrace 7.1 Deployment Sizing Calculator Version 1.8.7 | E1: =INDEX('Version History'!C:C,COUNTA('Version History'!C:C)) -> 2018-03-28
A2: Please select the used technologies: | W2: Type | Y2: Measures | Z2: Weighting | AA2: total measures | AB2: Collector weight | AC2: Agents
W3: Java | Y3: 150 | Z3: 400 | AA3: =AC3*Y3 -> 75000 | AB3: =AC3*'Result details'!$I$29/'Input data'!Z3 -> 500 | AC3: =IF(javaAgent=FALSE,0,$B$10) -> 500
B4: TRUE | D4: FALSE | F4: FALSE | H4: FALSE | J4: FALSE | L4: FALSE | N4: FALSE | P4: FALSE | R4: FALSE | T4: FALSE | W4: .NET | Y4: =23+Y10 -> 58 | Z4: 250 | AA4: =Y4*AC4 -> 0 | AB4: =AC4*'Result details'!$I$30/'Input data'!Z4 -> 0 | AC4: =IF(dotnetAgent=FALSE,0,$D$10+$D$11) -> 0
W5: App pools | Y5: =Y8 -> 43 | AA5: =D12*Y5 -> 0
W6: PHP | Y6: 0 | Z6: 250 | AA6: =Y6*H10 -> 0 | AB6: =AC6*'Result details'!I31/'Input data'!Z6 -> 0 | AC6: =IF(phpAgent=FALSE,0,$H$10) -> 0
W7: Native | Z7: 1000 | AA7: =0 -> 0 | AB7: =AC7*'Result details'!I32/'Input data'!Z7 -> 0 | AC7: =IF(nativeAgent=FALSE,0,$T$10) -> 0
B8: Java | D8: .NET | F8: Webserver (Apache, IIS, etc.) | H8: PHP | J8: Node.js | L8: Host Monitoring | N8: Database | P8: Mainframe | R8: MessageBroker | T8: Native | W8: Web server | Y8: =Y10+8 -> 43 | Z8: 500 | AA8: =AC8*Y8 -> 0 | AB8: =AC8*'Result details'!I33/'Input data'!Z8 -> 0 | AC8: =IF(webserverAgent=FALSE,0,($F$10+$F$11)) -> 0
W9: Message broker | Y9: =Y10 -> 35 | Z9: 100 | AA9: =Y9*AC9 -> 0 | AB9: =AC9*'Result details'!I34/'Input data'!Z9 -> 0 | AC9: =IF(messageBrokerAgent=FALSE,0,$R$10) -> 0
A10: Number of agents/processes (for .NET IIS w3wp worker processes)? | B10: 500 | D10: 0 | F10: 0 | H10: 0 | J10: 0 | L10: 0 | N10: 0 | P10: 0 | R10: 0 | T10: 0 | W10: Host | Y10: 35 | Z10: 1000 | AA10: =AC10*Y10 -> 0 | AB10: =AC10*'Result details'!I35/'Input data'!Z10 -> 0 | AC10: =IF(hostAgent=FALSE,0,$L$10) -> 0
A11: =IF(OR(dotnetAgent,webserverAgent),"Total number of non-IIS .NET instances?","") ->  | D11: 0 | F11: 0 | W11: Mainframe | Y11: 0 | Z11: 250 | AA11: =Y11*AC11 -> 0 | AB11: =AC11*'Result details'!I36/'Input data'!Z11 -> 0 | AC11: =IF(mainframeAgent=FALSE,0,$P$10) -> 0
A12: =IF(dotnetAgent,"Total number of app pools across all servers?","") ->  | D12: 0 | W12: Node.js | Y12: 0 | Z12: 500 | AA12: =Y12*AC12 -> 0 | AB12: =AC12*'Result details'!I37/'Input data'!Z12 -> 0 | AC12: =IF(nodeAgent=FALSE,0,$J$10) -> 0
W13: Database | Y13: 16 | Z13: 500 | AA13: =Y13*AC13 -> 0 | AB13: =AC13*'Result details'!I38/'Input data'!Z13 -> 0 | AC13: =IF(databaseAgent=FALSE,0,$N$10) -> 0
A14: Scenario:
A15: Do you want to capture transactions only from server side, users or both? | B15: Server side & UEM
A16: How many System Profiles are planned for your enviroment? | B16: 5
A18: Server load:
A19: =IF(scenario="UEM only","How many visits are handled from the datacenter?","Transactions (server side requests, user actions) handled from the datacenter?") -> Transactions (server side requests, user actions) handled from the datacenter? | B19: =5000000 -> 5000000 | C19: =IF(scenario="UEM only","visits/day","transactions/day") -> transactions/day
A20: What is the average number of nodes per transaction? | B20: 100 | C20: nodes
A21: How high is the max. peak factor (Black Friday, X-Mas, etc.)? | B21: 3
A22: During which time do you assume the load? From | B22: 08:00:00 | C22: to | D22: 20:00:00 | E22: =ROUNDUP(endTime-startTime,2) -> 0.5 | F22: hours
C23: =IF(B23=TRUE,TIMEVALUE(TIMEVALUE("00:00 AM"))-startTime,"") -> 
A24: User Experience Monitoring:
A25: Estimated average number of user actions (clicks, wipes, etc.) per visit? | B25: 10 | C25: =IF(staticResourcesPerDay<>numberOfTransactions*numberOfEstimatedUserActions,TRUE,FALSE) -> TRUE
A26: ="Transactions caused by the estimated avg. number of "&numberOfStaticResources&" static resources?" -> Transactions caused by the estimated avg. number of 8 static resources? | B26: =numberOfTransactions*numberOfStaticResources -> 40000000 | C26: transactions/day
A27: How many max. concurrent visits do you have? | B27: 10000 | C27: visits
A29: Storage:
A30: How long do you want to store the raw data (PurePaths, etc.) on your disk? | B30: 7 | C30: days
A32: Recommended deployment size: | K32: OnPrem | L32: Result
A33: Based on your sizing data, you have a | B33: =HYPERLINK(VLOOKUP(K33,Links!A2:B9,2,TRUE),K33) -> Large | E33: size deployment. | K33: =IF(L33,"No sizing",Scenarios!F25) -> Large | L33: ='Result details'!P39 -> FALSE
A34: ="Based on a peak value of " &peakFactorInput&", you have a" -> Based on a peak value of 3, you have a | B34: =HYPERLINK(VLOOKUP(K34,Links!A2:B9,2,TRUE),K34) -> Large | E34: size deployment. | K34: =IF(L34,"No sizing",Scenarios!F26) -> Large | L34: ='Result details'!Q39 -> FALSE
A35: Based on your sizing data, you have a | B35: =HYPERLINK(VLOOKUP(K35,Links!A2:B9,2,TRUE),K35) -> Large | E35: size deployment with UEM. | K35: =IF(L35,"No sizing",Scenarios!G25) -> Large | L35: ='Result details'!R39 -> FALSE
A36: ="Based on a peak value of " &peakFactorInput&", you have a" -> Based on a peak value of 3, you have a | B36: =HYPERLINK(VLOOKUP(K36,Links!A2:B9,2,TRUE),K36) -> Large | E36: size deployment with UEM. | K36: =IF(L36,"No sizing",Scenarios!G26) -> Large | L36: ='Result details'!S39 -> FALSE

Sheet Scenarios
A1: Maximums
C2: Demo | D2: Small | E2: Medium | F2: Large | G2: XLarge | H2: XXLarge | I2: XXXLarge
B3: tps | C3: =MAX(C39,C40) -> 330 | D3: =MAX(D39,D40) -> 640 | E3: 3300 | F3: 7600 | G3: 12600 | H3: 14400 | I3: 16400
B4: Java/.NET agents | C4: 5 | D4: 10 | E4: 250 | F4: 750 | G4: 2000 | H4: 2000 | I4: 2000
B5: total agents | C5: 20 | D5: 30 | E5: 300 | F5: 1000 | G5: 2500 | H5: 2500 | I5: 2500
B6: system profiles | C6: 1 | D6: 1 | E6: 5 | F6: 25 | G6: 100 | H6: 100 | I6: 100
B7: measures | C7: 1000 | D7: 5000 | E7: 50000 | F7: 200000 | G7: ='Result details'!O11 -> 600000 | H7: ='Result details'!O11 -> 600000 | I7: ='Result details'!O11 -> 600000
B8: nps | C8: =MAX(C50,C51) -> 15000 | D8: =MAX(D50,D51) -> 30000 | E8: 150000 | F8: 350000 | G8: 650000 | H8: 850000 | I8: 950000
B9: collectors | C9: 1 | D9: 1 | E9: 4 | F9: 10 | G9: 60 | H9: 60 | I9: 60
B10: concurrent visits | C10: =F10/25 -> 2400 | D10: =F10/15 -> 4000 | E10: =F10/2.5 -> 24000 | F10: =G10*0.6 -> 60000 | G10: 100000 | H10: 150000 | I10: 200000
A12: Input sizing
A13: =scenario -> Server side & UEM | D13: =IF(scenario<>"UEM only","w/o UEM","") -> w/o UEM | E13: =IF(scenario<>"Server side only","w/ UEM","") -> w/ UEM | F13: =IF(scenario<>"UEM only","w/o UEM","") -> w/o UEM | G13: =IF(scenario<>"Server side only","w/ UEM","") -> w/ UEM | J13: =IF(scenario<>"UEM only","w/o UEM","") -> w/o UEM | K13: =IF(scenario<>"Server side only","w/ UEM","") -> w/ UEM | L13: =IF(scenario<>"UEM only","w/o UEM","") -> w/o UEM | M13: =IF(scenario<>"Server side only","w/ UEM","") -> w/ UEM | N13: =IF(scenario<>"UEM only","w/o UEM","") -> w/o UEM | O13: =IF(scenario<>"Server side only","w/ UEM","") -> w/ UEM
C14: tps | D14: =IF(scenario<>"UEM only",ROUND(tps,2),"") -> 115.74 | E14: =IF(scenario<>"Server side only",ROUND(tpsUEM,2),"") -> 1041.67 | F14: =IF(scenario<>"UEM only",IF(J14>7,"No sizing",INDEX($C$32:$I$32,1,J14)),"") -> Demo | G14: =IF(scenario<>"Server side only",IF(K14>7,"No sizing",INDEX($C$32:$I$32,1,K14)),"") -> Medium | J14: =IF(scenario<>"UEM only",IFERROR(MATCH(D14-1,C39:I39),0)+1,"") -> 1 | K14: =IF(scenario<>"Server side only",IFERROR(MATCH(E14-1,C40:I40),0)+1,"") -> 3 | L14: =IF(F14="No sizing",TRUE,FALSE) -> FALSE | M14: =IF(G14="No sizing",TRUE,FALSE) -> FALSE
C15: peak tps | D15: =IF(scenario<>"UEM only",'Result details'!C14,"") -> 347.2222222 | E15: =IF(scenario<>"Server side only",'Result details'!E14,"") -> 3125 | F15: =IF(scenario<>"UEM only",IF(J15>7,"No sizing",INDEX($C$32:$I$32,1,J15)),"") -> Medium | G15: =IF(scenario<>"Server side only",IF(K15>7,"No sizing",INDEX($C$32:$I$32,1,K15)),"") -> Medium | J15: =IF(scenario<>"UEM only",IFERROR(MATCH(D15-1,C39:I39),0)+1,"") -> 3 | K15: =IF(scenario<>"Server side only",IFERROR(MATCH(E15-1,C40:I40),0)+1,"") -> 3 | L15: FALSE | M15: FALSE
C16: agents | D16: =IF(scenario<>"UEM only",agents,"") -> 500 | E16: =IF(scenario<>"Server side only",agents,"") -> 500 | F16: =IF(scenario<>"UEM only",IF(J16>7,"No sizing",INDEX($C$32:$I$32,1,J16)),"") -> Large | G16: =IF(scenario<>"Server side only",IF(K16>7,"No sizing",INDEX($C$32:$I$32,1,K16)),"") -> Large | J16: =IF(scenario<>"UEM only",IFERROR(MATCH(D16-1,C4:I4),0)+1,"") -> 4 | K16: =IF(scenario<>"Server side only",IFERROR(MATCH(E16-1,C4:I4),0)+1,"") -> 4 | L16: FALSE | M16: FALSE
C17: total agents | D17: =IF(scenario<>"UEM only",agents+agentsDBWebServer+hostAgents,"") -> 500 | E17: =IF(scenario<>"Server side only",agents+agentsDBWebServer+hostAgents,"") -> 500 | F17: =IF(scenario<>"UEM only",IF(J17>7,"No sizing",INDEX($C$32:$I$32,1,J17)),"") -> Large | G17: =IF(scenario<>"Server side only",IF(K17>7,"No sizing",INDEX($C$32:$I$32,1,K17)),"") -> Large | J17: =IF(scenario<>"UEM only",IFERROR(MATCH(D17-1,C5:I5),0)+1,"") -> 4 | K17: =IF(scenario<>"Server side only",IFERROR(MATCH(E17-1,C5:I5),0)+1,"") -> 4 | L17: FALSE | M17: FALSE
C18: system profiles | D18: =IF(scenario<>"UEM only",totalSystemProfiles,"") -> 5 | E18: =IF(scenario<>"Server side only",totalSystemProfiles,"") -> 5 | F18: =IF(scenario<>"UEM only",IF(J18>7,"No sizing",INDEX($C$32:$I$32,1,J18)),"") -> Medium | G18: =IF(scenario<>"Server side only",IF(K18>7,"No sizing",INDEX($C$32:$I$32,1,K18)),"") -> Medium | J18: =IF(scenario<>"UEM only",IFERROR(MATCH(D18-1,C6:I6),0)+1,"") -> 3 | K18: =IF(scenario<>"Server side only",IFERROR(MATCH(E18-1,C6:I6),0)+1,"") -> 3 | L18: FALSE | M18: FALSE
C19: ="max. tps for " & totalSystemProfiles & " profiles" -> max. tps for 5 profiles | D19: 2792.307692 | E19: 2792.307692 | F19: Medium | G19: Medium | L19: FALSE | M19: FALSE | N19: =IF(scenario<>"UEM only",VLOOKUP(totalSystemProfiles,$B$55:$I$60,MATCH(IF(F18="No sizing","XLarge",F18),$B$54:$I$54,0),FALSE),"") -> 2792.307692 | O19: =IF(scenario<>"Server side only",VLOOKUP(totalSystemProfiles,$B$55:$I$60,MATCH(IF(G18="No sizing","XLarge",G18),$B$54:$I$54,0),FALSE),"") -> 2792.307692
C20: measures | D20: =IF(scenario<>"UEM only",measures,"") -> 76000 | E20: =IF(scenario<>"Server side only",measures,"") -> 76000 | F20: =IF(scenario<>"UEM only",IF(J20>7,"No sizing",INDEX($C$32:$I$32,1,J20)),"") -> Large | G20: =IF(scenario<>"Server side only",IF(K20>7,"No sizing",INDEX($C$32:$I$32,1,K20)),"") -> Large | J20: =IF(scenario<>"UEM only",IFERROR(MATCH(D20-1,C7:I7),0)+1,"") -> 4 | K20: =IF(scenario<>"Server side only",IFERROR(MATCH(E20-1,C7:I7),0)+1,"") -> 4 | L20: FALSE | M20: FALSE
C21: nps | D21: =IF(scenario<>"UEM only",D14*B29,"") -> 11574 | E21: =IF(scenario<>"Server side only",E14*C29,"") -> 19791.73 | F21: =IF(scenario<>"UEM only",IF(J21>7,"No sizing",INDEX($C$32:$I$32,1,J21)),"") -> Demo | G21: Medium | J21: =IF(scenario<>"UEM only",IFERROR(MATCH(D21-1,C50:I50),0)+1,"") -> 1 | K21: =IF(scenario<>"Server side only",IFERROR(MATCH(E21-1,C51:I51),0)+1,"") -> 3 | L21: FALSE | M21: FALSE
C22: peak nps | D22: =IF(scenario<>"UEM only",D15*B29,"") -> 34722.22222 | E22: =IF(scenario<>"Server side only",E15*C29,"") -> 59375 | F22: =IF(scenario<>"UEM only",IF(J22>7,"No sizing",INDEX($C$32:$I$32,1,J22)),"") -> Medium | G22: Large | J22: =IF(scenario<>"UEM only",IFERROR(MATCH(D22-1,C50:I50),0)+1,"") -> 3 | K22: =IF(scenario<>"Server side only",IFERROR(MATCH(E22-1,C51:I51),0)+1,"") -> 4 | L22: FALSE | M22: FALSE
C23: collectors | D23: =IF(scenario<>"UEM only",collectors,"") -> 2 | E23: =IF(scenario<>"Server side only",collectors,"") -> 2 | F23: =IF(scenario<>"UEM only",IF(J23>7,"No sizing",INDEX($C$32:$I$32,1,J23)),"") -> Medium | G23: Medium | J23: =IF(scenario<>"UEM only",IFERROR(MATCH(D23-1,C9:I9),0)+1,"") -> 3 | K23: =IF(scenario<>"Server side only",IFERROR(MATCH(E23-1,C9:I9),0)+1,"") -> 3 | L23: FALSE | M23: FALSE
C24: =IF(scenario<>"Server side only","concurrent visits","") -> concurrent visits | E24: =IF(scenario<>"Server side only",uemConcurrentVisits,"") -> 10000 | G24: Medium | K24: =IF(scenario<>"Server side only",IFERROR(MATCH(E24-1,C10:I10),0)+1,"") -> 3 | M24: =IF(G24="No sizing",TRUE,FALSE) -> FALSE
B25: Scenario | F25: =IF(scenario<>"UEM only",IF(J25>7,"No sizing",INDEX($C$32:$I$32,1,J25)),"") -> Large | G25: Large | J25: =IF(scenario<>"UEM only",MAX(J14,J16,J17,J18,J19,J20,J21,J23),"") -> 4 | K25: =IF(scenario<>"Server side only",MAX(K14,K16,K17,K18,K19,K20,K21,K23,K24),"") -> 4 | L25: =IF(F25="No sizing",TRUE,FALSE) -> FALSE | M25: =IF(G25="No sizing",TRUE,FALSE) -> FALSE
B26: Scenario Peak | F26: =IF(scenario<>"UEM only",IF(J26>7,"No sizing",INDEX($C$32:$I$32,1,J26)),"") -> Large | G26: Large | J26: =IF(scenario<>"UEM only",MAX(J14:J23),"") -> 4 | K26: =IF(scenario<>"Server side only",MAX(K14:K24),"") -> 4 | L26: =IF(F26="No sizing",TRUE,FALSE) -> FALSE | M26: =IF(G26="No sizing",TRUE,FALSE) -> FALSE
B28: =IF(scenario<>"UEM only","w/o UEM","") -> w/o UEM | C28: =IF(scenario<>"Server side only","w/ UEM","") -> w/ UEM
A29: Avg. PP node length | B29: =IF(scenario<>"UEM only",nodes,"") -> 100 | C29: =IF(scenario<>"Server side only",nodesUEM,"") -> 19 | F29: =IF(scenario<>"UEM only",IF(B29>'Result details'!O14,TRUE,FALSE),"") -> FALSE
A31: Max. tps per nodes
B32: nodes | C32: Demo | D32: Small | E32: Medium | F32: Large | G32: XLarge | H32: XXLarge | I32: XXXLarge
B33: 5 | C33: 550 | D33: 1100 | E33: 5500 | F33: 13000 | G33: 22000 | H33: 24000 | I33: 28000
B34: 10 | C34: 450 | D34: 850 | E34: 4500 | F34: 10000 | G34: 16500 | H34: 18000 | I34: 20000
B35: 25 | C35: 250 | D35: 500 | E35: 2500 | F35: 6000 | G35: 10000 | H35: 12000 | I35: 14000
B36: 50 | C36: 200 | D36: 450 | E36: 2200 | F36: 5200 | G36: 7500 | H36: 9500 | I36: 10500
B37: 100 | C37: 150 | D37: 300 | E37: 1500 | F37: 3500 | G37: 6500 | H37: 8500 | I37: 9500
B38: 1000 | C38: 15 | D38: 30 | E38: 150 | F38: 350 | G38: 450 | H38: 550 | I38: 600
A39: =IF(scenario<>"UEM only","Avg. PP length w/o UEM","") -> Avg. PP length w/o UEM | B39: =IF(scenario<>"UEM only",nodes,"") -> 100 | C39: =IF(scenario<>"UEM only",'h2'!C9,"") -> 150 | D39: =IF(scenario<>"UEM only",'h2'!E9,"") -> 300 | E39: =IF(scenario<>"UEM only",'h2'!G9,"") -> 1500 | F39: =IF(scenario<>"UEM only",'h2'!I9,"") -> 3500 | G39: =IF(scenario<>"UEM only",'h2'!K9,"") -> 6500 | H39: =IF(scenario<>"UEM only",'h2'!M9,"") -> 8500 | I39: =IF(scenario<>"UEM only",'h2'!O9,"") -> 9500
A40: =IF(scenario<>"Server side only","Avg. PP length w/ UEM","") -> Avg. PP length w/ UEM | B40: =IF(scenario<>"Server side only",nodesUEM,"") -> 19 | C40: =IF(scenario<>"Server side only",'h2'!C10,"") -> 330 | D40: =IF(scenario<>"Server side only",'h2'!E10,"") -> 640 | E40: =IF(scenario<>"Server side only",'h2'!G10,"") -> 3300 | F40: =IF(scenario<>"Server side only",'h2'!I10,"") -> 7600 | G40: =IF(scenario<>"Server side only",'h2'!K10,"") -> 12600 | H40: =IF(scenario<>"Server side only",'h2'!M10,"") -> 14400 | I40: =IF(scenario<>"Server side only",'h2'!O10,"") -> 16400
A42: Nodes per second
B43: nodes | C43: Demo | D43: Small | E43: Medium | F43: Large | G43: XLarge | H43: XXLarge | I43: XXXLarge
B44: 5 | C44: =$B$33*C33 -> 2750 | D44: =$B$33*D33 -> 5500 | E44: =$B$33*E33 -> 27500 | F44: =$B$33*F33 -> 65000 | G44: =$B$33*G33 -> 110000 | H44: =$B$33*H33 -> 120000 | I44: 140000
B45: 10 | C45: =$B$34*C34 -> 4500 | D45: =$B$34*D34 -> 8500 | E45: =$B$34*E34 -> 45000 | F45: =$B$34*F34 -> 100000 | G45: =$B$34*G34 -> 165000 | H45: =$B$34*H34 -> 180000 | I45: 200000
B46: 25 | C46: =$B$35*C35 -> 6250 | D46: =$B$35*D35 -> 12500 | E46: =$B$35*E35 -> 62500 | F46: =$B$35*F35 -> 150000 | G46: =$B$35*G35 -> 250000 | H46: =$B$35*H35 -> 300000 | I46: 350000
B47: 50 | C47: =$B$36*C36 -> 10000 | D47: =$B$36*D36 -> 22500 | E47: =$B$36*E36 -> 110000 | F47: =$B$36*F36 -> 260000 | G47: =$B$36*G36 -> 375000 | H47: =$B$36*H36 -> 475000 | I47: 525000
B48: 100 | C48: =$B$37*C37 -> 15000 | D48: =$B$37*D37 -> 30000 | E48: =$B$37*E37 -> 150000 | F48: =$B$37*F37 -> 350000 | G48: =$B$37*G37 -> 650000 | H48: =$B$37*H37 -> 850000 | I48: 950000
B49: 1000 | C49: =$B$38*C38 -> 15000 | D49: =$B$38*D38 -> 30000 | E49: =$B$38*E38 -> 150000 | F49: =$B$38*F38 -> 350000 | G49: =$B$38*G38 -> 450000 | H49: =$B$38*H38 -> 550000 | I49: 600000
A50: =IF(scenario<>"UEM only","Avg. PP length w/o UEM","") -> Avg. PP length w/o UEM | B50: =IF(scenario<>"UEM only",nodes,"") -> 100 | C50: =IF(scenario<>"UEM only",'h2'!R9,"") -> 15000 | D50: =IF(scenario<>"UEM only",'h2'!T9,"") -> 30000 | E50: =IF(scenario<>"UEM only",'h2'!V9,"") -> 150000 | F50: =IF(scenario<>"UEM only",'h2'!X9,"") -> 350000 | G50: =IF(scenario<>"UEM only",'h2'!Z9,"") -> 650000 | H50: =IF(scenario<>"UEM only",'h2'!AB9,"") -> 850000 | I50: =IF(scenario<>"UEM only",'h2'!AD9,"") -> 950000
A51: =IF(scenario<>"Server side only","Avg. PP length w/ UEM","") -> Avg. PP length w/ UEM | B51: =IF(scenario<>"Server side only",nodesUEM,"") -> 19 | C51: =IF(scenario<>"Server side only",'h2'!R10,"") -> 5550 | D51: =IF(scenario<>"Server side only",'h2'!T10,"") -> 10900 | E51: =IF(scenario<>"Server side only",'h2'!V10,"") -> 55500 | F51: =IF(scenario<>"Server side only",'h2'!X10,"") -> 130000 | G51: =IF(scenario<>"Server side only",'h2'!Z10,"") -> 216000 | H51: =IF(scenario<>"Server side only",'h2'!AB10,"") -> 252000 | I51: =IF(scenario<>"Server side only",'h2'!AD10,"") -> 290000
A53: ="TPS for "&totalSystemProfiles&" profiles and "&IF(scenario="Server side only",ROUND(nodes,0),ROUND(nodesUEM,0) &" nodes") & " nodes" -> TPS for 5 profiles and 19 nodes nodes
B54: profiles | C54: Demo | D54: Small | E54: Medium | F54: Large | G54: XLarge | H54: XXLarge | I54: XXXLarge
B55: 1 | C55: =IF(scenario="Server side only",C39,C40) -> 330 | D55: 640 | E55: 3300 | F55: 7600 | G55: 12600 | H55: 14400 | I55: 16400
B56: 5 | E56: =E55*'h2'!L16 -> 2792.307692 | F56: =F55*'h2'!M16 -> 6430.769231 | G56: =G55*'h2'!N16 -> 10661.53846 | H56: =H55*'h2'!O16 -> 13552.94118 | I56: =I55*'h2'!P16 -> 15536.84211
B57: 10 | F57: =F56*'h2'!M17 -> 5846.153846 | G57: =G56*'h2'!N17 -> 9692.307692 | H57: =H56*'h2'!O17 -> 11858.82353 | I57: =I56*'h2'!P17 -> 14673.68421
B58: 25 | F58: =F57*'h2'!M18 -> 5846.153846 | G58: =G57*'h2'!N18 -> 9692.307692 | H58: =H57*'h2'!O18 -> 10164.70588 | I58: =I57*'h2'!P18 -> 12084.21053
B59: 50 | G59: =G58*'h2'!N19 -> 8723.076923 | H59: =H58*'h2'!O19 -> 9317.647059 | I59: =I58*'h2'!P19 -> 11221.05263
B60: 100 | G60: =G59*'h2'!N20 -> 7753.846154 | H60: =H59*'h2'!O20 -> 8470.588235 | I60: =I59*'h2'!P20 -> 10357.89474

Sheet Result details
A1: Sizing Computations | H1: Defaults | M1: Size calculations | O1: Maximum values | P1: Issue flags w/o UEM | R1: Issue flags w UEM
I2: Value | J2: Default
B3: w/o UEM | C3: w/ UEM | H3: PurePath percentage | I3: 1 | J3: 1 | M3: Agents (incl. CLRs):
A4: Average analyzed transactions per Day | B4: =numberOfTransactions*ppPercentage -> 5000000 | C4: =IF(scenario="Server side only",0,staticResourcesPerDay) -> 40000000 | H4: UEM visit percentage | I4: 1 | J4: 1 | M4: =IF(scenario="UEM only",0,'Input data'!AC3+'Input data'!AC4+'Input data'!AC6+'Input data'!AC7+'Input data'!AC9+'Input data'!AC11+'Input data'!AC12) -> 500 | O4: =Scenarios!G4 -> 2000 | P4: =IF(agents>O4,TRUE,FALSE) -> FALSE
A5: Total PurePath transactions per Day (incl. UEM) | C5: =IF(scenario="Server side only",0,B4+staticResourcesPerDay) -> 45000000 | H5: Average node size per PurePath UEM only | I5: =numberOfEstimatedUserActions -> 10 | J5: 10 | M5: Agents (DB, Web server)
M6: =IF(scenario="UEM only",0,'Input data'!AC8+'Input data'!AC13) -> 0 | O6: 2000 | P6: =IF(agentsDBWebServer>O6,TRUE,FALSE) -> FALSE
A7: Average Instrumented nodes per PurePath | B7: =averagePPNodeSize*B4/B4 -> 100 | C7: =IF(scenario="Server side only",0,IF(scenario="UEM only",I5,(averagePPNodeSize*B4+numberOfEstimatedUserActions*totalTransactionswithUEM)/(B4+totalTransactionswithUEM))) -> 19 | H7: Estimated average number of static resources per transaction: | I7: 8 | J7: =40/5 -> 8 | M7: Host Agents:
A8: Cyclic measures | B8: =M11+1000 -> 76000 | M8: =IF(scenario="UEM only",0,'Input data'!AC10) -> 0 | O8: 4000 | P8: =IF(hostAgents>O8,TRUE,FALSE) -> FALSE
A9: Total hours | B9: =loadDistribution*24 -> 12 | H9: Autosensors:
H10: Average path duration [ms]: | I10: =20000*1%+1000*20%+100*50%+10*29% -> 452.9 | J10: 1000 | M10: Cyclic Measures generated by Agents:
H11: Typical autosensor node size [bytes]: | I11: 20 | J11: 20 | M11: =IF(scenario="UEM only",0,SUM('Input data'!AA3:AA13)) -> 75000 | N11: Max. Measures | O11: 600000 | P11: =(measures>O11) -> FALSE
B12: Avg w/o UEM | C12: Peak w/o UEM | D12: Avg w/ UEM | E12: Peak w/ UEM | H12: Stack trace rate [ms]: | I12: 100 | J12: 100
A13: Transactions per Hour | B13: =B4/loaddistributioninhours -> 416666.6667 | C13: =B13*peakFactorInput -> 1250000 | D13: =C5/loaddistributioninhours -> 3750000 | E13: =D13*peakFactorInput -> 11250000 | M13: PP node size
A14: Transactions per Second (tps) | B14: =B13/3600 -> 115.7407407 | C14: =C13/3600 -> 347.2222222 | D14: =D13/3600 -> 1041.666667 | E14: =E13/3600 -> 3125 | H14: Network compression rate: | I14: 4 | J14: 4 | M14: =averagePPNodeSize -> 100 | O14: 1000 | P14: =IF(M14>O14,TRUE,FALSE) -> FALSE
A15: Nodes per Second (NPS) | B15: =B14*nodes -> 11574.07407 | C15: =C14*nodes -> 34722.22222 | D15: =D14*nodesUEM -> 19791.66667 | E15: =E14*nodesUEM -> 59375
H16: Typical node size [bytes]: | I16: 100 | J16: 100 | M16: Average node size [bytes] | O16: =Scenarios!I3 -> 16400 | P16: =(tps>O16) -> FALSE | Q16: =(C14>O16) -> FALSE | R16: =(tpsUEM>Q16) -> FALSE | S16: =(E14>Q16) -> FALSE
H17: Average attachment size [bytes]: | I17: 100 | J17: 200 | M17: =I16+I17*I18*(1-I19) -> 130 | N17: Max. NPS | O17: 430000 | P17: =(nps>O17) -> FALSE | Q17: =(C15>O17) -> FALSE | R17: =(npsUEM>Q17) -> FALSE | S17: =(E15>Q17) -> FALSE
H18: Percentage of nodes with attachments: | I18: 1 | J18: 0.8
A19: Bandwidth sizing | H19: Attachments cache factor: | I19: 0.7 | J19: 0.2
A20: Bandwidth normal [Mbit/sec] | B20: =ROUNDUP(B27*10,0) -> 15 | C20: =ROUNDUP(SUM(M22:N22)*peakFactorInput/POWER(1024,2)*10,0) -> 44 | H20: Block size to write [kb] | I20: 16 | J20: 16
A21: Bandwidth compressed [Mbit/sec] | B21: =ROUNDUP(SUM(M22:N22)/POWER(1024,2)*10/compression,1) -> 3.7 | C21: =ROUNDUP(SUM(M22:N22)*peakFactorInput/POWER(1024,2)*10/compression,1) -> 10.9 | M21: Transmitted PurePath node data [bytes/sec] w/o UEM
A22: Original values normal [Mbit/sec] | B22: =ROUNDUP(B13*8/3600/500,0) -> 2 | C22: =ROUNDUP(C13*8/3600/500,0) -> 6 | H22: Database overhead factor: | I22: 1.5 | J22: 1.5 | M22: =M17*nps -> 1504629.63 | N22: =tps*I10/I12*I11 -> 10483.7963
H24: Measurements high period (=minutes) [days]: | I24: 14 | J24: 14 | M24: Transmitted PurePath node data [bytes/sec] w UEM
A25: PurePath Session Storage sizing | H25: Measurements medium period (=hours) [days]: | I25: 60 | J25: 60 | M25: =M17*npsUEM -> 2572916.667 | N25: =tpsUEM*I10/I12*I11 -> 94354.16667
A26: Session Storage [GB] | B26: =ROUNDUP(M28/POWER(1024,3),0) -> 854 | H26: Measurements low period (=days) [days]: | I26: =365*5 -> 1825 | J26: 1825
A27: Data written into the Session Storage [MB/sec] | B27: =SUM(M22:N22)/POWER(1024,2) -> 1.444924761 | M27: Computed session storage [bytes] w/o UEM
A28: Estimated IOPS | B28: =(B27/I20)*1024 -> 92.47518469 | M28: =SUM(M22:N22)*3600*24*storeRawData -> 9.163406e+11 | O28: =2*POWER(1024,5) -> 2251799813685248 | P28: =(M28>O28) -> FALSE | R28: =(M31>O28) -> FALSE
H29: Agents per collector Java | I29: 400 | J29: 400
A30: Performance Warehouse sizing | H30: Agents per collector .NET | I30: 250 | J30: 250 | M30: Computed session storage [bytes] w UEM
A31: Performance Warehouse gross size [GB] | B31: =ROUNDUP(performanceWarehouse*I22/POWER(1024,3),0) -> 179 | H31: Agents per collector PHP | I31: 400 | J31: 400 | M31: =SUM(M25:N25)*3600*24*storeRawData -> 1613165400000
A32: Average DB Measures per Second | B32: =(SUM(M36:N38)+SUM(M36:N37))/(3600*24) -> 2585.05556 | H32: Agents per collector Native | I32: 1000 | J32: 1000
H33: Agents per collector Web server | I33: 500 | J33: 500
A34: Collector sizing | H34: Agents per collector MessageBroker | I34: 100 | J34: 100 | M34: Performance warehouse data per day:
A35: Estimated number of Collectors | B35: =ROUNDUP(SUM('Input data'!AB3:AB13)/I29,0) -> 2 | H35: Agents per collector Host | I35: 1000 | J35: 1000 | M35: 56 | N35: 566
H36: Agents per collector Mainframe | I36: 250 | J36: 250 | M36: =60*24*measures -> 109440000 | N36: 0.2
D37: Legend: | H37: Agents per collector Node.js | I37: 500 | J37: 500 | M37: =24*measures -> 1824000 | N37: =M37*N36 -> 364800
D38: Default parameter, only change if you have good reasons: | H38: Agents per collector Database | I38: 500 | J38: 500 | M38: =measures -> 76000 | N38: =M38*N36 -> 15200
D39: Customer environment parameter, change to improve the estimates: | H39: Max. NPS per collector: | I39: 100000 | J39: 100000 | M39: =(M35*(measureHigh*M36+measureMedium*M37+measureLow*M38)+N35*(measureMedium*N37+measureLow*N38)) -> 127786248000 | O39: Sizing feasible? | P39: =OR(flagMeasure,flagTps,flagNps,flagSession,flagTooManyAgents,flagTooManyagentsDBWebServer,flagTooManyHostAgents,flagPPnodeSize) -> FALSE | Q39: =OR(flagMeasure,flagTpsPeak,flagNpsPeak,flagSession,flagTooManyAgents,flagTooManyagentsDBWebServer,flagTooManyHostAgents,flagPPnodeSize) -> FALSE | R39: =OR(flagMeasure,flagTpsUEM,flagNpsUEM,flagSessionUEM,flagTooManyAgents,flagTooManyagentsDBWebServer,flagTooManyHostAgents,flagPPnodeSize) -> FALSE | S39: =OR(flagMeasure,flagNpsUEMPeak,flagNpsUEMPeak,flagTooManyAgents,flagTooManyagentsDBWebServer,flagTooManyHostAgents,flagPPnodeSize,flagTpsUEMPeak,flagSessionUEM) -> FALSE
O41: Values to double check:
O42: Time to complete a full 6GB session store file [sec] | P42: =IFERROR(6*1024/B27,0) -> 4252.124517
O43: Data written to session storage per minute [MB] | P43: =B27*60 -> 86.69548564
O44: Bandwidth [MB/sec] | P44: =M22/POWER(1024,2) -> 1.434926633
O45: Data written to performance warehouse per minute [MB] | P45: =ROUNDUP((M35*(M36*2+M37*2+M38)+N35*(N37*2+N38))/(24*60)/POWER(1024,2),3) -> 8.535

Sheet Sizing check
G2: Info
G3: Warning
G4: Problem
A7: Info | B7: Link | C7: The peak factor of 3 is the default. Please make sure that this value is correct

Sheet Notes
A1: Note by | B1: Date | C1: Note
A2: Jon Doe | B2: 2016-03-03 | C2: Test note

Sheet Version History
A1: Version | B1: Performed by | C1: Date | D1: Actions
A2: 0.1 | B2: Thorsten Roth | C2: 2014-11-07 | D2: fixed minor bugs
A3: 0.2 | B3: Thorsten Roth | C3: 2014-12-05 | D3: Updated the KPIs to 6.1
A4: 1 | B4: Thorsten Roth | C4: 2014-12-06 | D4: Updated URLs
A5: 1.1 | B5: Thorsten Roth | C5: 2014-12-17 | D5: Fixed N/A for Small Environments, fixed minor bugs
A6: 1.2 | B6: Thorsten Roth | C6: 2015-02-24 | D6: Scenario fix for NPS, consider peak values for size
A7: 1.3 | B7: Thorsten Roth | C7: 2015-03-27 | D7: Increased Block size to 16kB (IOPS calculation)
A8: 1.4 | B8: Thorsten Roth | C8: 2015-06-15 | D8: Updated KPIs for Collector
A9: 1.5 | B9: Thorsten Roth | C9: 2016-02-24 | D9: Major updates for usability and 6.3 KPIs
A10: 1.6 | B10: Thorsten Roth | C10: 2016-03-03 | D10: Fixed load distribution bug for charting, added drop down for time selection
A11: 1.7 | B11: Thorsten Roth | C11: 2016-03-03 | D11: Fixed bug in .NET app pools and removed ASP.NET apps
A12: 1.8 | B12: Thorsten Roth | C12: 2016-09-23 | D12: Health check, improved scenarios, updated KPIs, fixed minor bugs, etc.
A13: 1.8.1 | B13: Thorsten Roth | C13: 2016-09-27 | D13: Updated wrong TPS value, fixed minor bugs
A14: 1.8.2 | B14: Thorsten Roth | C14: 2016-10-05 | D14: Wrong user action formular, fixed minor bugs
A15: 1.8.3 | B15: Thorsten Roth | C15: 2016-10-19 | D15: SaaS scenario delivered wrong sizes
A16: 1.8.4 | B16: Thorsten Roth | C16: 2017-01-04 | D16: Fixed missing reference for MacOS
A17: 1.8.5 | B17: Thorsten Roth | C17: 2017-05-12 | D17: Updated guide with new KPIs and modified UEM contribution
A18: 1.8.6 | B18: Thorsten Roth | C18: 2017-06-02 | D18: Fixed max. measure limit
A19: 1.8.7 | B19: Thorsten Roth | C19: 2018-03-28 | D19: Updated KPIs for new version, removed SaaS offering, added new server sizes, etc.

Sheet h1 (hidden)
E1: Time | F1: StartTime | G1: EndTime | H1: Position | I1: Avg. Load w/o UEM | J1: ="Peak load of "&peakFactorInput& " w/o UEM" -> Peak load of 3 w/o UEM | K1: =IF(scenario<>"Server side only","Avg. Load w/ UEM","") -> Avg. Load w/ UEM | L1: =IF(scenario<>"Server side only","Peak load of "&peakFactorInput& " w/ UEM","") -> Peak load of 3 w/ UEM
A2: 1 | B2: 1 | E2: 00:01:00 | F2: =EXACT(E2,startTime) -> FALSE | G2: =EXACT(E2,endTime) -> FALSE | H2: 2 | I2: =IF(AND(H2>=$F$28,H2<=$G$28),avgTransactionsWithPercentage/(loadDistribution*24),0) -> 0 | J2: =I2*peakFactorInput -> 0 | K2: =IF(AND(H2>=$F$28,H2<=$G$28),totalTransactionswithUEM/(loadDistribution*24),0) -> 0 | L2: =K2*peakFactorInput -> 0
A3: 0.5 | B3: 0.9 | E3: 01:00:00 | F3: FALSE | G3: FALSE | H3: 3 | I3: 0 | J3: 0 | K3: 0 | L3: 0
A4: 0.25 | B4: 0.8 | E4: 02:00:00 | F4: FALSE | G4: FALSE | H4: 4 | I4: 0 | J4: 0 | K4: 0 | L4: 0
A5: 0.1 | B5: 0.7 | E5: 03:00:00 | F5: FALSE | G5: FALSE | H5: 5 | I5: 0 | J5: 0 | K5: 0 | L5: 0
A6: 0.01 | B6: 0.6 | E6: 04:00:00 | F6: FALSE | G6: FALSE | H6: 6 | I6: 0 | J6: 0 | K6: 0 | L6: 0
A7: 0.001 | B7: 0.5 | E7: 05:00:00 | F7: FALSE | G7: FALSE | H7: 7 | I7: 0 | J7: 0 | K7: 0 | L7: 0
A8: 0.0001 | B8: 0.4 | E8: 06:00:00 | F8: FALSE | G8: FALSE | H8: 8 | I8: 0 | J8: 0 | K8: 0 | L8: 0
A9: 1e-05 | B9: 0.3 | E9: 07:00:00 | F9: FALSE | G9: FALSE | H9: 9 | I9: 0 | J9: 0 | K9: 0 | L9: 0
B10: 0.2 | E10: 08:00:00 | F10: TRUE | G10: FALSE | H10: 10 | I10: 416666.6667 | J10: 1250000 | K10: 3750000 | L10: 11250000
B11: 0.1 | E11: 09:00:00 | F11: FALSE | G11: FALSE | H11: 11 | I11: 416666.6667 | J11: 1250000 | K11: 3750000 | L11: 11250000
E12: 10:00:00 | F12: FALSE | G12: FALSE | H12: 12 | I12: 416666.6667 | J12: 1250000 | K12: 3750000 | L12: 11250000
E13: 11:00:00 | F13: FALSE | G13: FALSE | H13: 13 | I13: 416666.6667 | J13: 1250000 | K13: 3750000 | L13: 11250000
E14: 12:00:00 | F14: FALSE | G14: FALSE | H14: 14 | I14: 416666.6667 | J14: 1250000 | K14: 3750000 | L14: 11250000
E15: 13:00:00 | F15: FALSE | G15: FALSE | H15: 15 | I15: 416666.6667 | J15: 1250000 | K15: 3750000 | L15: 11250000
E16: 14:00:00 | F16: FALSE | G16: FALSE | H16: 16 | I16: 416666.6667 | J16: 1250000 | K16: 3750000 | L16: 11250000
E17: 15:00:00 | F17: FALSE | G17: FALSE | H17: 17 | I17: 416666.6667 | J17: 1250000 | K17: 3750000 | L17: 11250000
E18: 16:00:00 | F18: FALSE | G18: FALSE | H18: 18 | I18: 416666.6667 | J18: 1250000 | K18: 3750000 | L18: 11250000
E19: 17:00:00 | F19: FALSE | G19: FALSE | H19: 19 | I19: 416666.6667 | J19: 1250000 | K19: 3750000 | L19: 11250000
E20: 18:00:00 | F20: FALSE | G20: FALSE | H20: 20 | I20: 416666.6667 | J20: 1250000 | K20: 3750000 | L20: 11250000
E21: 19:00:00 | F21: FALSE | G21: FALSE | H21: 21 | I21: 416666.6667 | J21: 1250000 | K21: 3750000 | L21: 11250000
E22: 20:00:00 | F22: FALSE | G22: TRUE | H22: 22 | I22: 416666.6667 | J22: 1250000 | K22: 3750000 | L22: 11250000
E23: 21:00:00 | F23: FALSE | G23: FALSE | H23: 23 | I23: 0 | J23: 0 | K23: 0 | L23: 0
E24: 22:00:00 | F24: FALSE | G24: FALSE | H24: 24 | I24: 0 | J24: 0 | K24: 0 | L24: 0
E25: 23:00:00 | F25: FALSE | G25: FALSE | H25: 25 | I25: 0 | J25: 0 | K25: 0 | L25: 0
E26: 23:59:00 | F26: FALSE | G26: FALSE | H26: 26 | I26: 0 | J26: 0 | K26: 0 | L26: 0
F27: =CELL("address",INDEX(F2:F26,MATCH(TRUE,F2:F26,0))) -> $F$10 | G27: =CELL("address",INDEX(G2:G26,MATCH(TRUE,G2:G26,0))) -> $G$22 | I27: 0 | J27: 0
F28: =_xlfn.NUMBERVALUE(RIGHT(F27,LEN(F27)-3)) -> 10 | G28: =_xlfn.NUMBERVALUE(RIGHT(G27,LEN(G27)-3)) -> 22 | I28: 0 | J28: 0

Sheet h2 (hidden)
B1: Max. tps per nodes | Q1: Nodes per second
B2: =Scenarios!$B$32 -> nodes | C2: =Scenarios!C32 -> Demo | D2: =Scenarios!$B$32 -> nodes | E2: =Scenarios!D32 -> Small | F2: =Scenarios!$B$32 -> nodes | G2: =Scenarios!E32 -> Medium | H2: =Scenarios!$B$32 -> nodes | I2: =Scenarios!F32 -> Large | J2: =Scenarios!$B$32 -> nodes | K2: =Scenarios!G32 -> XLarge | L2: =Scenarios!$B$32 -> nodes | M2: XXLarge | N2: =Scenarios!$B$32 -> nodes | O2: XXXLarge | Q2: =Scenarios!$B$43 -> nodes | R2: =Scenarios!C43 -> Demo | S2: =Scenarios!$B$43 -> nodes | T2: =Scenarios!D43 -> Small | U2: =Scenarios!$B$43 -> nodes | V2: =Scenarios!E43 -> Medium | W2: =Scenarios!$B$43 -> nodes | X2: =Scenarios!F43 -> Large | Y2: =Scenarios!$B$43 -> nodes | Z2: =Scenarios!G43 -> XLarge | AA2: =Scenarios!$B$32 -> nodes | AB2: XXLarge | AC2: =Scenarios!$B$32 -> nodes | AD2: XXXLarge
B3: =Scenarios!$B$33 -> 5 | C3: =Scenarios!C33 -> 550 | D3: =Scenarios!$B$33 -> 5 | E3: =Scenarios!D33 -> 1100 | F3: =Scenarios!$B$33 -> 5 | G3: =Scenarios!E33 -> 5500 | H3: =Scenarios!$B$33 -> 5 | I3: =Scenarios!F33 -> 13000 | J3: =Scenarios!$B$33 -> 5 | K3: =Scenarios!G33 -> 22000 | L3: =Scenarios!$B$33 -> 5 | M3: =Scenarios!H33 -> 24000 | N3: =Scenarios!$B$33 -> 5 | O3: =Scenarios!I33 -> 28000 | Q3: =Scenarios!$B$44 -> 5 | R3: =Scenarios!C44 -> 2750 | S3: =Scenarios!$B$44 -> 5 | T3: =Scenarios!D44 -> 5500 | U3: =Scenarios!$B$44 -> 5 | V3: =Scenarios!E44 -> 27500 | W3: =Scenarios!$B$44 -> 5 | X3: =Scenarios!F44 -> 65000 | Y3: =Scenarios!$B$44 -> 5 | Z3: =Scenarios!G44 -> 110000 | AA3: =Scenarios!$B$44 -> 5 | AB3: =Scenarios!H44 -> 120000 | AC3: =Scenarios!$B$44 -> 5 | AD3: =Scenarios!I44 -> 140000
B4: =Scenarios!$B$34 -> 10 | C4: =Scenarios!C34 -> 450 | D4: =Scenarios!$B$34 -> 10 | E4: =Scenarios!D34 -> 850 | F4: =Scenarios!$B$34 -> 10 | G4: =Scenarios!E34 -> 4500 | H4: =Scenarios!$B$34 -> 10 | I4: =Scenarios!F34 -> 10000 | J4: =Scenarios!$B$34 -> 10 | K4: =Scenarios!G34 -> 16500 | L4: =Scenarios!$B$34 -> 10 | M4: =Scenarios!H34 -> 18000 | N4: =Scenarios!$B$34 -> 10 | O4: =Scenarios!I34 -> 20000 | Q4: =Scenarios!$B$45 -> 10 | R4: =Scenarios!C45 -> 4500 | S4: =Scenarios!$B$45 -> 10 | T4: =Scenarios!D45 -> 8500 | U4: =Scenarios!$B$45 -> 10 | V4: =Scenarios!E45 -> 45000 | W4: =Scenarios!$B$45 -> 10 | X4: =Scenarios!F45 -> 100000 | Y4: =Scenarios!$B$45 -> 10 | Z4: =Scenarios!G45 -> 165000 | AA4: =Scenarios!$B$45 -> 10 | AB4: =Scenarios!H45 -> 180000 | AC4: =Scenarios!$B$45 -> 10 | AD4: =Scenarios!I45 -> 200000
B5: =Scenarios!$B$35 -> 25 | C5: =Scenarios!C35 -> 250 | D5: =Scenarios!$B$35 -> 25 | E5: =Scenarios!D35 -> 500 | F5: =Scenarios!$B$35 -> 25 | G5: =Scenarios!E35 -> 2500 | H5: =Scenarios!$B$35 -> 25 | I5: =Scenarios!F35 -> 6000 | J5: =Scenarios!$B$35 -> 25 | K5: =Scenarios!G35 -> 10000 | L5: =Scenarios!$B$35 -> 25 | M5: =Scenarios!H35 -> 12000 | N5: =Scenarios!$B$35 -> 25 | O5: =Scenarios!I35 -> 14000 | Q5: =Scenarios!$B$46 -> 25 | R5: =Scenarios!C46 -> 6250 | S5: =Scenarios!$B$46 -> 25 | T5: =Scenarios!D46 -> 12500 | U5: =Scenarios!$B$46 -> 25 | V5: =Scenarios!E46 -> 62500 | W5: =Scenarios!$B$46 -> 25 | X5: =Scenarios!F46 -> 150000 | Y5: =Scenarios!$B$46 -> 25 | Z5: =Scenarios!G46 -> 250000 | AA5: =Scenarios!$B$46 -> 25 | AB5: =Scenarios!H46 -> 300000 | AC5: =Scenarios!$B$46 -> 25 | AD5: =Scenarios!I46 -> 350000
B6: =Scenarios!$B$36 -> 50 | C6: =Scenarios!C36 -> 200 | D6: =Scenarios!$B$36 -> 50 | E6: =Scenarios!D36 -> 450 | F6: =Scenarios!$B$36 -> 50 | G6: =Scenarios!E36 -> 2200 | H6: =Scenarios!$B$36 -> 50 | I6: =Scenarios!F36 -> 5200 | J6: =Scenarios!$B$36 -> 50 | K6: =Scenarios!G36 -> 7500 | L6: =Scenarios!$B$36 -> 50 | M6: =Scenarios!H36 -> 9500 | N6: =Scenarios!$B$36 -> 50 | O6: =Scenarios!I36 -> 10500 | Q6: =Scenarios!$B$47 -> 50 | R6: =Scenarios!C47 -> 10000 | S6: =Scenarios!$B$47 -> 50 | T6: =Scenarios!D47 -> 22500 | U6: =Scenarios!$B$47 -> 50 | V6: =Scenarios!E47 -> 110000 | W6: =Scenarios!$B$47 -> 50 | X6: =Scenarios!F47 -> 260000 | Y6: =Scenarios!$B$47 -> 50 | Z6: =Scenarios!G47 -> 375000 | AA6: =Scenarios!$B$47 -> 50 | AB6: =Scenarios!H47 -> 475000 | AC6: =Scenarios!$B$47 -> 50 | AD6: =Scenarios!I47 -> 525000
B7: =Scenarios!$B$37 -> 100 | C7: =Scenarios!C37 -> 150 | D7: =Scenarios!$B$37 -> 100 | E7: =Scenarios!D37 -> 300 | F7: =Scenarios!$B$37 -> 100 | G7: =Scenarios!E37 -> 1500 | H7: =Scenarios!$B$37 -> 100 | I7: =Scenarios!F37 -> 3500 | J7: =Scenarios!$B$37 -> 100 | K7: =Scenarios!G37 -> 6500 | L7: =Scenarios!$B$37 -> 100 | M7: =Scenarios!H37 -> 8500 | N7: =Scenarios!$B$37 -> 100 | O7: =Scenarios!I37 -> 9500 | Q7: =Scenarios!$B$48 -> 100 | R7: =Scenarios!C48 -> 15000 | S7: =Scenarios!$B$48 -> 100 | T7: =Scenarios!D48 -> 30000 | U7: =Scenarios!$B$48 -> 100 | V7: =Scenarios!E48 -> 150000 | W7: =Scenarios!$B$48 -> 100 | X7: =Scenarios!F48 -> 350000 | Y7: =Scenarios!$B$48 -> 100 | Z7: =Scenarios!G48 -> 650000 | AA7: =Scenarios!$B$48 -> 100 | AB7: =Scenarios!H48 -> 850000 | AC7: =Scenarios!$B$48 -> 100 | AD7: =Scenarios!I48 -> 950000
B8: =Scenarios!$B$38 -> 1000 | C8: =Scenarios!C38 -> 15 | D8: =Scenarios!$B$38 -> 1000 | E8: =Scenarios!D38 -> 30 | F8: =Scenarios!$B$38 -> 1000 | G8: =Scenarios!E38 -> 150 | H8: =Scenarios!$B$38 -> 1000 | I8: =Scenarios!F38 -> 350 | J8: =Scenarios!$B$38 -> 1000 | K8: =Scenarios!G38 -> 450 | L8: =Scenarios!$B$38 -> 1000 | M8: =Scenarios!H38 -> 550 | N8: =Scenarios!$B$38 -> 1000 | O8: =Scenarios!I38 -> 600 | Q8: =Scenarios!$B$49 -> 1000 | R8: =Scenarios!C49 -> 15000 | S8: =Scenarios!$B$49 -> 1000 | T8: =Scenarios!D49 -> 30000 | U8: =Scenarios!$B$49 -> 1000 | V8: =Scenarios!E49 -> 150000 | W8: =Scenarios!$B$49 -> 1000 | X8: =Scenarios!F49 -> 350000 | Y8: =Scenarios!$B$49 -> 1000 | Z8: =Scenarios!G49 -> 450000 | AA8: =Scenarios!$B$49 -> 1000 | AB8: =Scenarios!H49 -> 550000 | AC8: =Scenarios!$B$49 -> 1000 | AD8: =Scenarios!I49 -> 600000
A9: w/o UEM | B9: =nodes -> 100 | C9: =ROUNDUP(interpolate($B$9,B3:C8),0) -> 150 | E9: =ROUNDUP(interpolate($B$9,D3:E8),0) -> 300 | G9: =ROUNDUP(interpolate($B$9,F3:G8),0) -> 1500 | I9: =ROUNDUP(interpolate($B$9,H3:I8),0) -> 3500 | K9: =ROUNDUP(interpolate($B$9,J3:K8),0) -> 6500 | M9: =ROUNDUP(interpolate($B$9,L3:M8),0) -> 8500 | O9: =ROUNDUP(interpolate($B$9,N3:O8),0) -> 9500 | R9: =ROUNDUP(interpolate($B$9,Q3:R8),0) -> 15000 | T9: =ROUNDUP(interpolate($B$9,S3:T8),0) -> 30000 | V9: =ROUNDUP(interpolate($B$9,U3:V8),0) -> 150000 | X9: =ROUNDUP(interpolate($B$9,W3:X8),0) -> 350000 | Z9: =ROUNDUP(interpolate($B$9,Y3:Z8),0) -> 650000 | AB9: =ROUNDUP(interpolate($B$9,AA3:AB8),0) -> 850000 | AD9: =ROUNDUP(interpolate($B$9,AC3:AD8),0) -> 950000
A10: w UEM | B10: =nodesUEM -> 19 | C10: =ROUNDUP(interpolate($B$10,B3:C8),0) -> 330 | E10: =ROUNDUP(interpolate($B$10,D3:E8),0) -> 640 | G10: =ROUNDUP(interpolate($B$10,F3:G8),0) -> 3300 | I10: =ROUNDUP(interpolate($B$10,H3:I8),0) -> 7600 | K10: =ROUNDUP(interpolate($B$10,J3:K8),0) -> 12600 | M10: =ROUNDUP(interpolate($B$10,L3:M8),0) -> 14400 | O10: =ROUNDUP(interpolate($B$10,N3:O8),0) -> 16400 | R10: =ROUNDUP(interpolate($B$10,Q3:R8),0) -> 5550 | T10: =ROUNDUP(interpolate($B$10,S3:T8),0) -> 10900 | V10: =ROUNDUP(interpolate($B$10,U3:V8),0) -> 55500 | X10: =ROUNDUP(interpolate($B$10,W3:X8),0) -> 130000 | Z10: =ROUNDUP(interpolate($B$10,Y3:Z8),0) -> 216000 | AB10: =ROUNDUP(interpolate($B$10,AA3:AB8),0) -> 252000 | AD10: =ROUNDUP(interpolate($B$10,AC3:AD8),0) -> 290000
B14: ="TPS for "&totalSystemProfiles&" profiles and "&IF(scenario="Server side only",ROUND(nodes,0),ROUND(nodesUEM,0) &" nodes") & " nodes" -> TPS for 5 profiles and 19 nodes nodes | L14: Conversion rates
B15: profiles | C15: Demo | D15: Small | E15: Medium | F15: Large | G15: XLarge | H15: XXLarge | I15: XXXLarge | L15: Medium | M15: Large | N15: XLarge | O15: XXLarge | P15: XXXLarge
B16: 1 | C16: 120 | D16: 200 | E16: 1200 | F16: 3000 | G16: =Scenarios!G37 -> 6500 | H16: 8500 | I16: 9500 | L16: =E17/E16 -> 0.8461538462 | M16: =F17/F16 -> 0.8461538462 | N16: =G17/G16 -> 0.8461538462 | O16: =H17/H16 -> 0.9411764706 | P16: 0.9473684211
B17: 5 | E17: =(E16/F16)*F17 -> 1015.384615 | F17: =(F16/G16)*G17 -> 2538.461538 | G17: 5500 | H17: 8000 | I17: 9000 | M17: =F18/F17 -> 0.9090909091 | N17: =G18/G17 -> 0.9090909091 | O17: 0.875 | P17: 0.9444444444
B18: 10 | F18: =F17/G17*G18 -> 2307.692308 | G18: 5000 | H18: 7000 | I18: 8500 | M18: =F19/F18 -> 1 | N18: =G19/G18 -> 1 | O18: 0.8571428571 | P18: 0.8235294118
B19: 25 | F19: =F18/G18*G19 -> 2307.692308 | G19: 5000 | H19: 6000 | I19: 7000 | N19: =G20/G19 -> 0.9 | O19: 0.9166666667 | P19: 0.9285714286
B20: 50 | G20: 4500 | H20: 5500 | I20: 6500 | N20: =G21/G20 -> 0.8888888889 | O20: 0.9090909091 | P20: 0.9230769231
B21: 100 | G21: 4000 | H21: 5000 | I21: 6000

Sheet Links (hidden)
B1: Link
A2: Demo | B2: https://www.dynatrace.com/support/doc/appmon/installation/deployment-guide/assess-results/default-deployment-sizes/demo-poc-environment/
A3: Small | B3: https://www.dynatrace.com/support/doc/appmon/installation/deployment-guide/assess-results/default-deployment-sizes/small-environment/
A4: Medium | B4: https://www.dynatrace.com/support/doc/appmon/installation/deployment-guide/assess-results/default-deployment-sizes/medium-environment/
A5: Large | B5: https://www.dynatrace.com/support/doc/appmon/installation/deployment-guide/assess-results/default-deployment-sizes/large-environment/
A6: XLarge | B6: https://www.dynatrace.com/support/doc/appmon/installation/deployment-guide/assess-results/default-deployment-sizes/xlarge-environment/
A7: XXLarge | B7: https://www.dynatrace.com/support/doc/appmon/installation/deployment-guide/assess-results/default-deployment-sizes/xlarge-environment/
A8: XXXLarge | B8: https://www.dynatrace.com/support/doc/appmon/installation/deployment-guide/assess-results/default-deployment-sizes/xlarge-environment/
A9: No Sizing | B9: https://www.dynatrace.com/support/doc/appmon/installation/deployment-guide/assess-results/default-deployment-sizes/sizing-questions-or-issues/
A10: Bandwidth | B10: https://www.dynatrace.com/support/doc/appmon/installation/deployment-guide/additional-deployment-best-practices/network-bandwidth-best-practices/
A11: Storage | B11: https://www.dynatrace.com/support/doc/appmon/installation/deployment-guide/additional-deployment-best-practices/disk-io-determination-best-practices/
A12: Update | B12: https://www.dynatrace.com/support/doc/appmon/installation/deployment-guide/use-the-deployment-sizing-calculator/
A13: HelpDotNet | B13: https://www.dynatrace.com/support/doc/appmon/installation/deployment-guide/collect-sizing-data/
A20: Agent Info | B20: https://www.dynatrace.com/support/doc/appmon/installation/deployment-guide/collect-sizing-data/
